fUSD/lending_fUSD_20251118
["ID","MTS","AMOUNT","RATE_DAILY","PERIOD"]
[394348106,1763478835086,174.75,0.00041633,120]
[394348107,1763478835128,629.56119453,0.00040186,31]
[394348108,1763478835172,573.45,0.00044657,120]
[394348109,1763478835232,174.75,0.00041633,120]
[394348110,1763478835290,4768.85,0.00043835,120]
[394348111,1763478835330,4768.85,0.00044109,120]
[394348112,1763478835372,4768.85,0.00044383,120]
[394348113,1763478835409,4768.92,0.00044657,120]
[394348114,1763478835504,1000.0,0.00052055,120]
[394348115,1763478835540,1000.0,0.0005205,120]
[394348116,1763478835576,1000.0,0.00052044,120]
[394348117,1763478835612,1000.0,0.00052039,120]
[394348118,1763478835657,1000.0,0.00052034,120]
[394348119,1763478835775,1000.0,0.00052029,120]
[394348120,1763478835836,1000.0,0.00052024,120]
[394348121,1763478843681,-209.38,0.00041633,60]
[394348122,1763478843717,-209.38,0.00041925,60]
[394348123,1763478843750,-209.38,0.00042169,60]
[394348124,1763478843787,-209.38,0.00042412,60]
[394348125,1763478843822,-209.38,0.00042656,60]
[394348126,1763478843857,-209.38,0.00042899,60]
[394348127,1763478843896,-209.38,0.00043142,60]
[394348128,1763478843928,-209.38,0.00043386,60]
[394348129,1763478843962,-209.38,0.00043629,60]
[394348130,1763478843995,-591.61,0.00043835,120]
[394348131,1763478844028,-591.61,0.00044109,120]
[394348132,1763478844061,-591.61,0.00044383,120]
[394348133,1763478844100,-591.69,0.00044657,120]
[394348134,1763478844143,-155.08438088,0.00047475,120]
[394348135,1763478844179,-150.0,0.00051628,30]
[394348136,1763478844212,-1000.0,0.00051848,30]
[394348137,1763478844244,-150.0,0.0005189,30]
[394348138,1763478844277,-150.0,0.00051957,30]
[394348139,1763478844312,-1000.0,0.00051977,30]
[394348140,1763478844347,-1000.0,0.00052008,120]
[394348141,1763478844380,-1000.0,0.00052013,120]
[394348142,1763478844412,-1000.0,0.00052018,120]
[394348143,1763478844457,1000.0,0.00051802,30]
[394348144,1763478844493,1000.0,0.0005151,30]
[394348145,1763478844629,1000.0,0.00050817,30]
[394348146,1763478844670,1000.0,0.00051571,30]
[394348147,1763478844716,1000.0,0.00050947,30]
[394348148,1763478844754,1000.0,0.00051855,30]
[394348149,1763478844791,1000.0,0.00051672,30]
[394348150,1763478844832,1000.0,0.00051895,30]
[394348151,1763478844873,1000.0,0.00051045,30]
[394348152,1763478844909,1000.0,0.00051125,30]
[394348153,1763478844965,1000.0,0.00051913,30]
[394348154,1763478845167,1000.0,0.00049333,120]
[394348155,1763478845580,262.203616,0.00041633,120]
[394348156,1763478845781,25000.0,0.00051822,120]
[394348157,1763478845820,150.0,0.00049333,30]
[394348158,1763478846762,169103.8483,0.0003522,30]
[394348159,1763478846824,87126.0479,0.0003922,30]
[394348160,1763478847064,87126.0479,0.0004322,30]
[394348161,1763478848298,180.65798706,0.000474,120]
[394348162,1763478848391,151.0,0.00041633,120]
[394348163,1763478848434,25000.0,0.00051423,120]
[394348164,1763478848541,4584044.16991606,0.0004803,120]
[394348165,1763478866442,-175.0,0.00038,30]
[394348166,1763478866484,-175.0,0.00040274,90]
[394348167,1763478866550,-282.600692,0.00041633,120]
[394348168,1763478866581,-151.0,0.00041633,120]
[394348169,1763478866615,-259.08,0.000417,60]
[394348170,1763478866659,-777.24,0.000438,60]
[394348171,1763478866698,-1106.2,0.00043835,30]
[394348172,1763478866736,-1246.8,0.00043862,120]
[394348173,1763478866773,-1106.2,0.00044109,30]
[394348174,1763478866809,-1246.8,0.00044136,120]
[394348175,1763478866844,-1106.2,0.00044383,30]
[394348176,1763478866883,-1246.8,0.0004441,120]
[394348177,1763478866916,-1106.2,0.00044657,30]
[394348178,1763478866948,-1246.8,0.00044684,120]
[394348179,1763478866982,-1246.8,0.00044958,120]
[394348180,1763478867024,-1246.8,0.00045232,120]
[394348181,1763478867059,-1246.8,0.00045506,120]
[394348182,1763478867094,-1246.8,0.0004578,120]
[394348183,1763478867133,-1246.8,0.00046054,120]
[394348184,1763478867165,-1246.8,0.00046328,120]
[394348185,1763478867200,-1247.0,0.00046602,120]
[394348186,1763478867235,-341186.13816375,0.0004803,120]
[394348187,1763478867266,-150.0,0.0004803,30]
[394348188,1763478867299,-25000.0,0.00050028,120]
[394348189,1763478867329,-25000.0,0.00050028,120]
[394348190,1763478867359,-25000.0,0.00051224,120]
[394348191,1763478867388,-228.97849529,0.00051805,120]
[394348192,1763478867418,-7270.1049848,0.00051977,30]
[394348193,1763478867448,-1279.96365589,0.00051977,30]
[394348194,1763478867481,-153.94340961,0.00052054,120]
[394348195,1763478867513,-151.0,0.00052054,120]
[394348196,1763478867548,-151.0,0.00052054,120]
[394348197,1763478867579,-151.0,0.00052054,120]
[394348198,1763478867608,-151.0,0.00052054,120]
[394348199,1763478867639,-166.17491,0.00052055,59]
[394348200,1763478867670,-153.0,0.000521,120]
[394348201,1763478867701,-200.68487645,0.00052149,120]
[394348202,1763478867734,-151.0,0.000522,120]
[394348203,1763478867770,-724.12627182,0.00052274,120]
[394348204,1763478867805,-25000.0,0.000523,120]
[394348205,1763478867842,-25000.0,0.000525,120]
[394348206,1763478867878,-150.0,0.00052551,120]
[394348207,1763478867912,-153.0,0.000527,120]
[394348208,1763478867944,-300.0,0.00052868,30]
[394348209,1763478867976,-151.0,0.000529,120]
[394348210,1763478868010,-1000.0,0.00052999,120]
[394348211,1763478868043,-478.67780747,0.00053,120]
[394348212,1763478868073,-150.0,0.00053,120]
[394348213,1763478868103,-390.0,0.00053,120]
[394348214,1763478868139,-25000.0,0.00053,120]
[394348215,1763478868168,-150.0,0.00053,120]
[394348216,1763478868197,-300.0,0.00053,30]
[394348217,1763478868227,-1035.097,0.00053104,98]
[394348218,1763478868257,-300.0,0.00053132,30]
[394348219,1763478868287,-5000.0,0.00053162,120]
[394348220,1763478868318,-150.0,0.00053175,120]
[394348221,1763478868348,-153.0,0.000532,120]
[394348222,1763478868381,-300.0,0.00053264,30]
[394348223,1763478868424,-25000.0,0.000533,120]
[394348224,1763478868458,-320.22696995,0.00053397,30]
[394348225,1763478868493,-2918.67868844,0.000534,120]
[394348226,1763478868525,-247.28873876,0.000534,120]
[394348227,1763478868555,-25000.0,0.000535,120]
[394348228,1763478868586,-151.0,0.000536,120]
[394348229,1763478868618,-153.0,0.000537,120]
[394348230,1763478868659,-1000.0,0.00053798,120]
[394348231,1763478868690,-1000.0,0.00053798,120]
[394348232,1763478868721,-162.0,0.000538,120]
[394348233,1763478868963,-1000.0,0.000538,120]
[394348234,1763478868996,-1000.0,0.00053803,120]
[394348235,1763478869030,-1000.0,0.00053803,120]
[394348236,1763478869062,-1000.0,0.00053803,120]
[394348237,1763478869093,-1000.0,0.00053808,120]
[394348238,1763478869129,-1000.0,0.00053808,120]
[394348239,1763478869164,-1000.0,0.00053808,120]
[394348240,1763478869196,-1000.0,0.00053814,120]
[394348241,1763478869228,-1000.0,0.00053814,120]
[394348242,1763478869259,-1000.0,0.00053814,120]
[394348243,1763478869290,-1312.34,0.00053818,120]
[394348244,1763478869320,-1000.0,0.00053818,120]
[394348245,1763478869349,-1000.0,0.00053819,120]
[394348246,1763478869384,-1000.0,0.00053819,120]
[394348247,1763478869414,-1000.0,0.00053819,120]
[394348248,1763478869442,-1000.0,0.00053825,120]
[394348249,1763478869471,-1000.0,0.00053825,120]
[394348250,1763478869500,-1000.0,0.00053825,120]
[394348251,1763478869530,-1000.0,0.0005383,120]
[394348252,1763478869560,-1000.0,0.0005383,120]
[394348253,1763478869589,-1000.0,0.0005383,120]
[394348254,1763478869619,-132165.13599906,0.0005383,120]
[394348255,1763478869653,-1000.0,0.00053835,120]
[394348256,1763478869684,-1000.0,0.00053835,120]
[394348257,1763478869714,-1000.0,0.00053835,120]
[394348258,1763478869745,-1000.0,0.00053841,120]
[394348259,1763478869778,-1000.0,0.00053841,120]
[394348260,1763478869811,-1000.0,0.00053841,120]
[394348261,1763478869846,-1000.0,0.00053846,120]
[394348262,1763478869886,-1000.0,0.00053846,120]
[394348263,1763478869920,-1000.0,0.00053846,120]
[394348264,1763478869955,-1000.0,0.00053999,120]
[394348265,1763478869988,-396.0800594,0.00054,120]
[394348266,1763478870018,-150.0,0.00054,120]
[394348267,1763478870052,-200.0,0.00054,120]
[394348268,1763478870093,-25000.0,0.00054,120]
[394348269,1763478870123,-279.47064959,0.00054,120]
[394348270,1763478870158,-260.83074066,0.00054,120]
[394348271,1763478870193,-1433.95961,0.00054,120]
[394348272,1763478870226,-155.0,0.00054,120]
[394348273,1763478870258,-697.37849953,0.00054,120]
[394348274,1763478870288,-784.13351887,0.00054,120]
[394348275,1763478870316,-2923.66,0.00054,30]
[394348276,1763478870343,-166.17491,0.00054055,59]
[394348277,1763478870372,-150.0,0.0005423,120]
[394348278,1763478870407,-2019.0,0.00054247,120]
[394348279,1763478870440,-25000.0,0.000543,120]
[394348280,1763478870472,-181.840481,0.000543,120]
[394348281,1763478870502,-153.0,0.000543,120]
[394348282,1763478870533,-151.0,0.000543,120]
[394348283,1763478870560,-1000.0,0.00054443,120]
[394348284,1763478870588,-25000.0,0.000545,120]
[394348285,1763478870617,-5000.0,0.00054623,120]
[394348286,1763478870651,-150.0,0.00054708,120]
[394348287,1763478870681,-1000.0,0.00054793,120]
[394348288,1763478870711,-500.0,0.00054794,120]
[394348289,1763478870741,-1000.0,0.00054794,120]
[394348290,1763478870773,-1000.0,0.00054794,120]
[394348291,1763478870804,-1000.0,0.00054794,120]
[394348292,1763478870834,-1000.0,0.00054794,120]
[394348293,1763478870865,-1000.0,0.00054794,120]
[394348294,1763478870899,-1000.0,0.00054794,120]
[394348295,1763478870931,-675.6472767,0.00054794,120]
[394348296,1763478870968,-10000.0,0.00054795,120]
[394348297,1763478871004,-153.0,0.000548,120]
[394348298,1763478871035,-155555.0,0.0005483,120]
[394348299,1763478871066,-176.76853652,0.000549,120]
[394348300,1763478871098,-370.25498121,0.0005495,120]
[394348301,1763478871136,-50000.0,0.00055,55]
[394348302,1763478871168,-150.0,0.00055,120]
[394348303,1763478871198,-883.53388055,0.00055,120]
[394348304,1763478871231,-168.89259152,0.00055,120]
[394348305,1763478871264,-214.68639681,0.00055,120]
[394348306,1763478871297,-500.0,0.00055,30]
[394348307,1763478871331,-1000.0,0.00055,120]
[394348308,1763478871362,-1000.0,0.00055,30]
[394348309,1763478871394,-25000.0,0.00055,120]
[394348310,1763478871427,-7120.72211457,0.00055,120]
[394348311,1763478871458,-1000.0,0.00055,60]
[394348312,1763478871494,-1639.0,0.00055,120]
[394348313,1763478871525,-234.16923087,0.00055,120]
[394348314,1763478871558,-2918.67868844,0.00055,120]
[394348315,1763478871590,-151.0,0.00055,120]
[394348316,1763478871621,-186.0,0.00055,60]
[394348317,1763478871659,-274.137555,0.00055,100]
[394348318,1763478871691,-8852.03,0.00055,30]
[394348319,1763478871721,-500.0,0.00055068,120]
[394348320,1763478871750,-25000.0,0.000553,120]
[394348321,1763478871780,-2000.0,0.000553,90]
[394348322,1763478871816,-500.0,0.00055342,120]
[394348323,1763478871849,-153.0,0.000554,120]
[394348324,1763478871881,-150.0,0.00055498,120]
[394348325,1763478871916,-25000.0,0.000555,120]
[394348326,1763478871946,-500.0,0.00055616,120]
[394348327,1763478871978,-5000.0,0.00055633,120]
[394348328,1763478872013,-151.0,0.000557,120]
[394348329,1763478872047,-155555.0,0.0005583,120]
[394348330,1763478872081,-500.0,0.0005588,120]
[394348331,1763478872117,-500.0,0.0005589,120]
[394348332,1763478872157,-150.0,0.00055892,120]
[394348333,1763478872188,-153.0,0.000559,120]
[394348334,1763478872218,-1000.0,0.00055999,120]
[394348335,1763478872413,-1000.0,0.00056,120]
[394348336,1763478872446,-200.0,0.00056,120]
[394348337,1763478872481,-25000.0,0.00056,120]
[394348338,1763478872511,-189.0,0.00056,120]
[394348339,1763478872541,-951.5838581,0.00056,120]
[394348340,1763478872570,-697.37849953,0.00056,120]
[394348341,1763478872601,-784.13351885,0.00056,120]
[394348342,1763478872631,-166.17492,0.00056055,59]
[394348343,1763478872665,-500.0,0.00056164,120]
[394348344,1763478872704,25000.0,0.00051025,120]
[394348345,1763478872745,647.7,0.000529,60]
[394348346,1763478872783,3609258.69881899,0.0004803,120]
[394348347,1763478877416,-232.63159686,0.000474,120]
[394348348,1763478877450,-1315971.60926082,0.0004803,120]
[394348349,1763478877481,-1577.96,0.00051768,120]
[394348350,1763478877524,-150.0,0.000538,30]
[394348351,1763478877556,-25000.0,0.00053814,120]
[394348352,1763478877588,-544.0,0.00055864,120]
[394348353,1763478877618,-544.0,0.00055864,120]
[394348354,1763478877647,-544.0,0.00055864,120]
[394348355,1763478877678,-544.0,0.00055864,120]
[394348356,1763478877708,-544.0,0.00055864,120]
[394348357,1763478877740,-544.0,0.00055864,120]
[394348358,1763478877774,-544.0,0.00055864,120]
[394348359,1763478877806,-544.0,0.00055864,120]
[394348360,1763478877840,-544.0,0.00055864,120]
[394348361,1763478877874,-544.0,0.00055864,120]
[394348362,1763478877905,-544.0,0.00055864,120]
[394348363,1763478877937,-544.0,0.00055864,120]
[394348364,1763478877967,-544.0,0.00055864,120]
[394348365,1763478877998,-544.0,0.00055864,120]
[394348366,1763478878038,-544.0,0.00055864,120]
[394348367,1763478878077,544.0,0.00055864,120]
[394348368,1763478878116,544.0,0.00055864,120]
[394348369,1763478878155,544.0,0.00055864,120]
[394348370,1763478878194,544.0,0.00055864,120]
[394348371,1763478878330,544.0,0.00055864,120]
[394348372,1763478878558,544.0,0.00055864,120]
[394348373,1763478878761,544.0,0.00055864,120]
[394348374,1763478879105,544.0,0.00055864,120]
[394348375,1763478879380,563.9316337,0.00055864,120]
[394348376,1763478880564,150.0,0.00055864,30]
[394348377,1763478883498,1949.96891,0.00056164,78]
[394348378,1763478884634,290.71808346,0.0005608,30]
[394348379,1763478905203,-605.02460679,0.00038,120]
[394348380,1763478905291,-877.1,0.000417,30]
[394348381,1763478905346,-209.48564032,0.00042082,30]
[394348382,1763478905396,-209.48564032,0.00042247,30]
[394348383,1763478905449,-209.48564032,0.00042411,30]
[394348384,1763478905501,-209.48564032,0.00042575,30]
[394348385,1763478905553,-209.48564032,0.0004274,30]
[394348386,1763478905606,-209.48564032,0.00042932,30]
[394348387,1763478905657,-209.48564032,0.00043096,30]
[394348388,1763478905713,-209.48564032,0.0004326,30]
[394348389,1763478905761,-209.48564032,0.00043425,30]
[394348390,1763478905812,-209.48564032,0.00043589,30]
[394348391,1763478905863,-877.1,0.000436,30]
[394348392,1763478905918,-209.48564032,0.00043753,30]
[394348393,1763478905969,-677.96,0.00043835,120]
[394348394,1763478906018,-1629.76,0.00043862,120]
[394348395,1763478906067,-500.0,0.00043862,120]
[394348396,1763478906117,-209.48564032,0.00043945,30]
[394348397,1763478906171,-677.96,0.00044109,120]
[394348398,1763478906220,-1629.76,0.00044136,120]
[394348399,1763478906270,-500.0,0.00044136,120]
[394348400,1763478906317,-1629.76,0.0004441,120]
[394348401,1763478906365,-500.0,0.0004441,120]
[394348402,1763478906418,-1629.76,0.00044684,120]
[394348403,1763478906466,-500.0,0.00044684,120]
[394348404,1763478906519,-1629.76,0.00044958,120]
[394348405,1763478906568,-500.0,0.00044958,120]
[394348406,1763478906614,-1629.76,0.00045232,120]
[394348407,1763478906664,-194.34,0.00045232,120]
[394348408,1763478906709,-1629.76,0.00045506,120]
[394348409,1763478906757,-1629.76,0.0004578,120]
[394348410,1763478906807,-877.1,0.00046,30]
[394348411,1763478906859,-1629.76,0.00046054,120]
[394348412,1763478906908,-1629.76,0.00046328,120]
[394348413,1763478906965,-1629.92,0.00046602,120]
[394348414,1763478907017,-1167.47147538,0.000474,120]
[394348415,1763478907069,-877.1,0.000482,30]
[394348416,1763478907119,-1167.47147538,0.000489,120]
[394348417,1763478907172,-1167.47147538,0.000503,120]
[394348418,1763478907221,-1167.47147538,0.000518,120]
[394348419,1763478907271,-877.1,0.000521,30]
[394348420,1763478907323,-1167.47147538,0.000534,120]
[394348421,1763478907374,-1167.47147538,0.00055,120]
[394348422,1763478907423,-877.1,0.000557,30]
[394348423,1763478907470,-156.0,0.00055864,120]
[394348424,1763478907519,-150.0,0.0005608,30]
[394348425,1763478907567,-244.218,0.0005608,30]
[394348426,1763478907616,-398.04,0.00056179,120]
[394348427,1763478907670,-150.0,0.00056267,120]
[394348428,1763478907720,-153.0,0.000564,120]
[394348429,1763478907766,-151.0,0.000564,120]
[394348430,1763478907812,-500.0,0.00056438,120]
[394348431,1763478907860,-675.0,0.000566,120]
[394348432,1763478907907,-1167.47147538,0.000567,120]
[394348433,1763478907958,-500.0,0.00056712,120]
[394348434,1763478908007,-150.0,0.00056715,120]
[394348435,1763478908059,-777.16783383,0.000568,120]
[394348436,1763478908116,-26368.27935062,0.0005698,120]
[394348437,1763478908169,-500.0,0.00056986,120]
[394348438,1763478908221,-150.0,0.0005699,120]
[394348439,1763478908269,-1000.0,0.00056999,120]
[394348440,1763478908318,-1000.0,0.00057,120]
[394348441,1763478908364,-153.0,0.00057,120]
[394348442,1763478908415,-151.0,0.000571,120]
[394348443,1763478908462,-333.04369495,0.0005726,120]
[394348444,1763478908508,-155555.0,0.0005733,120]
[394348445,1763478908556,-153.0,0.000575,120]
[394348446,1763478908690,677.96,0.00044383,120]
[394348447,1763478908744,678.12,0.00044657,120]
[394348448,1763478908823,5518.0,0.000529,120]
[394348449,1763478909488,100000.0,0.00055209,120]
[394348450,1763478911479,150.0,0.00056163,120]
[394348451,1763478934154,-151.0,0.00041633,120]
[394348452,1763478934229,-150.0,0.00056163,120]
[394348453,1763478934276,-150.0,0.00056163,120]
[394348454,1763478934323,-166.17491,0.000575,85]
[394348455,1763478934372,-10000.0,0.00057534,120]
[394348456,1763478934418,-151.0,0.000577,120]
[394348457,1763478934466,-298678.86385415,0.000578,120]
[394348458,1763478934520,-3825.48272652,0.00057833,120]
[394348459,1763478934570,-2000.0,0.0005786,72]
[394348460,1763478934616,-5076.71067,0.00057863,30]
[394348461,1763478934661,-1000.0,0.00057999,120]
[394348462,1763478934708,-1000.0,0.00058,120]
[394348463,1763478934756,-200.0,0.00058,120]
[394348464,1763478934811,-153.0,0.000581,120]
[394348465,1763478934864,-151.0,0.000584,120]
[394348466,1763478934920,-1167.47147538,0.000584,120]
[394348467,1763478934975,-153.0,0.000586,120]
[394348468,1763478935027,-2000.0,0.0005864,68]
[394348469,1763478935074,-1001897.10621881,0.000588,120]
[394348470,1763478935118,-155555.0,0.0005883,120]
[394348471,1763478935166,-6793.88733589,0.00058875,60]
[394348472,1763478935212,-1656.60453151,0.000589,120]
[394348473,1763478935261,-6157.6952014,0.00058937,120]
[394348474,1763478935306,-1004.9681808,0.00058965,30]
[394348475,1763478935354,-1000.0,0.00058999,120]
[394348476,1763478935407,-1000.0,0.00059,120]
[394348477,1763478935468,-1639.0,0.00059,120]
[394348478,1763478935515,-873.6854019,0.00059,120]
[394348479,1763478935561,-479.3239441,0.00059,120]
[394348480,1763478935607,-2000.0,0.00059,90]
[394348481,1763478935654,-153.0,0.000591,120]
[394348482,1763478935698,-151.0,0.000591,120]
[394348483,1763478935743,-150.0,0.00059122,30]
[394348484,1763478935788,-484.60883738,0.00059122,30]
[394348485,1763478935835,-153.0,0.00059186,120]
[394348486,1763478935891,-153.0,0.00059186,120]
[394348487,1763478935951,-153.0,0.00059186,120]
[394348488,1763478935999,-153.0,0.00059186,120]
[394348489,1763478936048,-153.0,0.00059186,120]
[394348490,1763478936097,-153.0,0.00059186,120]
[394348491,1763478936148,-153.0,0.00059186,120]
[394348492,1763478936195,-153.0,0.00059186,120]
[394348493,1763478936242,-150.0,0.00059442,120]
[394348494,1763478936299,-166.17491,0.000595,85]
[394348495,1763478936348,-153.0,0.00059523,120]
[394348496,1763478936396,-153.0,0.00059523,120]
[394348497,1763478936447,-153.0,0.00059523,120]
[394348498,1763478936497,-153.0,0.00059523,120]
[394348499,1763478936545,-153.0,0.00059523,120]
[394348500,1763478936593,-153.0,0.00059523,120]
[394348501,1763478936640,-153.0,0.00059523,120]
[394348502,1763478936688,-249.0,0.0005958,120]
[394348503,1763478936736,-249.0,0.0005958,120]
[394348504,1763478936785,-249.0,0.0005958,120]
[394348505,1763478936832,-249.0,0.0005958,120]
[394348506,1763478936884,-249.0,0.0005958,120]
[394348507,1763478936938,-249.0,0.0005958,120]
[394348508,1763478936986,-249.0,0.0005958,120]
[394348509,1763478937033,-153.0,0.000597,120]
[394348510,1763478937079,-446.25058147,0.0005978,65]
[394348511,1763478937128,-151.0,0.000598,120]
[394348512,1763478937186,-150.0,0.00059862,120]
[394348513,1763478937235,-153.0,0.00059893,120]
[394348514,1763478937282,-153.0,0.00059893,120]
[394348515,1763478937327,-153.0,0.00059893,120]
[394348516,1763478937372,-825.12120724,0.000599,120]
[394348517,1763478937416,-572.26271937,0.000599,120]
[394348518,1763478937459,-1029.99780589,0.000599,30]
[394348519,1763478937503,-194.05089616,0.00059942,120]
[394348520,1763478937547,-522.75842303,0.00059943,120]
[394348521,1763478937590,-194.05089616,0.00059943,120]
[394348522,1763478937641,-573.14965019,0.00059944,120]
[394348523,1763478937695,-254.0,0.00059946,120]
[394348524,1763478937927,-522.75842303,0.00059947,120]
[394348525,1763478937984,-194.05089616,0.00059963,120]
[394348526,1763478938040,-1150.09485244,0.00059964,120]
[394348527,1763478938087,-1150.09485244,0.00059965,120]
[394348528,1763478938136,-163.09221225,0.00059968,120]
[394348529,1763478938186,-573.14965019,0.00059971,120]
[394348530,1763478938233,-573.14965019,0.00059975,120]
[394348531,1763478938283,-1150.09485244,0.00059975,120]
[394348532,1763478938329,-522.75842303,0.00059981,120]
[394348533,1763478938372,-195.27,0.0005999,120]
[394348534,1763478938419,-163.09221225,0.00059993,120]
[394348535,1763478938466,-163.09221225,0.00059998,120]
[394348536,1763478938512,-1000.0,0.00059999,120]
[394348537,1763478938563,-50000.0,0.0006,60]
[394348538,1763478938609,-150.0,0.0006,120]
[394348539,1763478938654,-172.70184173,0.0006,120]
[394348540,1763478938701,-310.07330758,0.0006,120]
[394348541,1763478938748,-486.83366899,0.0006,120]
[394348542,1763478938796,-159.14933347,0.0006,120]
[394348543,1763478938844,-1000.0,0.0006,120]
[394348544,1763478938892,-500.0,0.0006,120]
[394348545,1763478938945,-200.0,0.0006,120]
[394348546,1763478938993,-1000.0,0.0006,120]
[394348547,1763478939044,-453.25,0.0006,120]
[394348548,1763478939091,-622.75104683,0.0006,120]
[394348549,1763478939139,-959.48620225,0.0006,120]
[394348550,1763478939185,-30442.53,0.0006,120]
[394348551,1763478939234,-1500.39001638,0.0006,120]
[394348552,1763478939282,-1107.9080528,0.0006,120]
[394348553,1763478939328,-1177.96679245,0.0006,120]
[394348554,1763478939373,-53897.06854621,0.0006,120]
[394348555,1763478939420,-5017.78296421,0.0006,30]
[394348556,1763478939468,-2636.05155596,0.0006,120]
[394348557,1763478939516,-100000.0,0.0006,120]
[394348558,1763478939567,-1167.47147538,0.000601,120]
[394348559,1763478939614,-393.61156851,0.000602,120]
[394348560,1763478939663,-153.0,0.000602,120]
[394348561,1763478939710,-33073.5462728,0.0006026,120]
[394348562,1763478939756,-200.0,0.0006027,60]
[394348563,1763478939803,-250.0,0.0006027,60]
[394348564,1763478939940,151.0,0.00041633,120]
[394348565,1763478939992,151.0,0.00041633,120]
[394348566,1763478940048,151.0,0.00041633,120]
[394348567,1763478940099,151.0,0.00041633,120]
[394348568,1763478940161,5517.0,0.000529,120]
[394348569,1763478940218,155.41510279,0.000399,120]
[394348570,1763478940268,1000.0,0.00059999,30]
[394348571,1763478940320,1000.0,0.00059999,30]
[394348572,1763478940372,1000.0,0.00059999,30]
[394348573,1763478940430,1000.0,0.00059999,30]
[394348574,1763478940491,1000.0,0.00059999,30]
[394348575,1763478940541,1000.0,0.00059999,30]
[394348576,1763478940590,1000.0,0.00059999,30]
[394348577,1763478940642,1000.0,0.00059999,30]
[394348578,1763478940698,1000.0,0.00060099,30]
[394348579,1763478940753,1000.0,0.00059999,30]
[394348582,1763479302627,5000.00387059,0.00017071,5]
[394348583,1763479341686,9541.0,0.00041662,30]
[394348584,1763479397549,-192.61,0.00016712,2]
[394348585,1763479397572,-195.0,0.00016892,2]
[394348586,1763479397594,-195.0,0.0001701,2]
[394348587,1763479397616,-256.9970583,0.00017071,2]
[394348588,1763479397637,-250.0,0.00017072,2]
[394348589,1763479397658,-248.96114124,0.00017073,2]
[394348590,1763479397680,-167.72909832,0.00017073,2]
[394348591,1763479397700,-635.15435128,0.00017073,2]
[394348592,1763479397722,-58.54835086,0.00017073,2]
[394348593,1763479456091,2612.83081136,0.00017097,4]
[394348594,1763479473887,300.0,0.00041662,30]
[394348597,1763479523353,293.9161524,0.00041673,120]
[394348601,1763479641128,999.0,0.00017458,3]
[394348602,1763479658884,300.0,0.000169,6]
[394348603,1763479665444,215.89113002,0.00041673,30]
[394348608,1763479713364,150.12946566,0.00041673,120]
[394348610,1763479725882,150.0,0.00041673,30]
[394348611,1763479737706,154.34814828,0.00041673,30]
[394348627,1763479831705,-513.9941166,0.0001691,2]
[394348631,1763479831715,-300.0,0.00016999,2]
[394348633,1763479831729,-300.0,0.00016999,2]
[394348634,1763479831739,-1200.0,0.00016999,2]
[394348635,1763479831748,-300.0,0.00016999,2]
[394348636,1763479831757,-2654.23987369,0.00017,2]